fUSD/lending_fUSD_20240213
["ID","MTS","AMOUNT","RATE_DAILY","PERIOD"]
[313955074,1707857435883,-726.93,0.00023007,2]
[313955076,1707857435895,-719.94,0.00023007,2]
[313955078,1707857435907,-714.91,0.00023007,2]
[313955080,1707857435920,-724.74,0.00023009,2]
[313955082,1707857435931,-499.99,0.00023009,2]
[313955084,1707857435943,-414.3,0.00023009,2]
[313955085,1707857435954,-4593.3,0.00023009,2]
[313955086,1707857435965,-9365.08,0.00023009,2]
[313955087,1707857435977,-736.31,0.0002301,2]
[313955088,1707857435988,-227.2,0.0002301,2]
[313955089,1707857436000,-713.46,0.00023011,2]
[313955090,1707857436012,-711.57,0.00023014,2]
[313955091,1707857436024,-500.0,0.00023014,2]
[313955092,1707857436035,-227.2,0.00023073,2]
[313955093,1707857436046,-1292.32085014,0.00023088,2]
[313955094,1707857436057,-16850.00099742,0.0002313,2]
[313955095,1707857436069,-1206.96788346,0.0002313,3]
[313955096,1707857436080,-227.2,0.00023137,2]
[313955097,1707857436092,-177.39,0.00023165,2]
[313955098,1707857436106,-227.2,0.000232,2]
[313955099,1707857436117,-722.84,0.00023207,2]
[313955100,1707857436128,-2000.0,0.0002323,2]
[313955101,1707857436140,-200.0,0.0002323,2]
[313955102,1707857436152,-227.2,0.00023263,2]
[313955103,1707857436162,-227.2,0.00023326,2]
[313955104,1707857436174,-206.0,0.00023384,2]
[313955105,1707857436186,-227.2,0.00023389,2]
[313955106,1707857436197,-227.2,0.00023452,2]
[313955107,1707857436208,-200.0,0.00023462,2]
[313955108,1707857436219,-165.93,0.0002351,2]
[313955109,1707857436231,-227.2,0.00023515,2]
[313955110,1707857436242,-165.24,0.00023554,2]
[313955111,1707857436253,-227.2,0.00023578,2]
[313955112,1707857436265,-227.2,0.00023641,2]
[313955113,1707857436276,-227.2,0.00023704,2]
[313955114,1707857436287,-227.2,0.00023768,2]
[313955115,1707857436298,-364.88,0.00023807,2]
[313955116,1707857436309,-227.2,0.00023831,2]
[313955117,1707857436320,-227.2,0.00023894,2]
[313955118,1707857436330,-227.2,0.00023957,2]
[313955119,1707857436341,-185.77,0.00023974,2]
[313955120,1707857436352,-518.01679133,0.00024,2]
[313955121,1707857436365,-202.22442285,0.00024,2]
[313955122,1707857436376,-227.2,0.0002402,2]
[313955123,1707857436387,-227.2,0.00024083,2]
[313955124,1707857436398,-227.2,0.00024146,2]
[313955125,1707857436409,-227.2,0.00024209,2]
[313955126,1707857436420,-200.31907233,0.000243,2]
[313955127,1707857436432,-586.1,0.00024348,2]
[313955128,1707857436442,-8969.01,0.00024384,2]
[313955129,1707857436454,-243.56,0.00024411,2]
[313955130,1707857436465,-497.29265858,0.00024441,2]
[313955131,1707857436476,-1725.05216051,0.000245,2]
[313955132,1707857436488,-1318.06,0.0002452,2]
[313955133,1707857436500,-1984.72150863,0.0002459,2]
[313955134,1707857436511,-19248.33299721,0.000246,2]
[313955135,1707857436522,-2600.6584098,0.00024657,4]
[313955136,1707857436545,-250.0,0.00024658,2]
[313955137,1707857436560,-408.65821158,0.00024688,2]
[313955138,1707857436574,-1516.95860631,0.00024688,2]
[313955139,1707857436587,-1516.95860631,0.00024688,2]
[313955140,1707857436600,-262.34318511,0.00024689,2]
[313955141,1707857436615,-79991.6347,0.0002469,2]
[313955142,1707857436629,-146818.53675312,0.0002469,2]
[313955143,1707857436646,-81045.58630856,0.0002469,2]
[313955144,1707857436663,-17135.87693832,0.0002469,2]
[313955145,1707857436674,-500.0,0.0002469,2]
[313955146,1707857436687,-1000.0,0.0002469,2]
[313955147,1707857436699,-189.77979253,0.0002478,2]
[313955148,1707857436711,-4192.36370674,0.00024788,4]
[313955149,1707857436723,-5049.84486499,0.00024788,2]
[313955150,1707857436735,-3577.03210738,0.00024799,2]
[313955151,1707857436747,-723.2,0.00024845,2]
[313955152,1707857436759,-364.88,0.0002489,2]
[313955153,1707857436770,-938.20137126,0.00025,2]
[313955154,1707857436783,-18715.96260369,0.00025,4]
[313955155,1707857436795,-168.32868177,0.00025,2]
[313955156,1707857436807,-659.47170738,0.00025,2]
[313955157,1707857436818,-305.21545109,0.00025,2]
[313955158,1707857437041,-1592.37015014,0.00025,2]
[313955159,1707857437054,-946.49306219,0.00025,2]
[313955160,1707857437065,-159.6500011,0.00025,2]
[313955161,1707857437079,-166.22634616,0.00025,2]
[313955162,1707857437090,-1910.1668503,0.00025,2]
[313955163,1707857437102,-698.00629012,0.00025,2]
[313955164,1707857437115,-155.0,0.00025,2]
[313955165,1707857437126,-1250.0,0.00025,3]
[313955166,1707857437138,-152.19,0.00025101,2]
[313955167,1707857437151,-185.77,0.00025115,2]
[313955168,1707857437166,-206.0,0.00025215,4]
[313955169,1707857437176,-1984.72150863,0.0002522,2]
[313955170,1707857437187,-165.93,0.00025302,2]
[313955171,1707857437197,-722.84,0.0002547,2]
[313955172,1707857437208,-3577.03210733,0.000255,2]
[313955173,1707857437217,-546.11404868,0.000255,2]
[313955174,1707857437227,-170448.33729637,0.00025524,2]
[313955175,1707857437237,-165.16010682,0.000256,2]
[313955176,1707857437246,-531.12,0.00025639,2]
[313955177,1707857437256,-1984.72150863,0.0002585,2]
[313955178,1707857437265,-364.88,0.00025972,2]
[313955179,1707857437275,-152.19,0.00025989,2]
[313955180,1707857437284,-736.40906938,0.00026,2]
[313955181,1707857437294,-1111.6785,0.00026025,2]
[313955182,1707857437303,-1318.06,0.00026163,2]
[313955183,1707857437313,-546.11404868,0.00026175,2]
[313955184,1707857437322,-185.77,0.00026257,2]
[313955185,1707857437332,-177.27,0.0002634,2]
[313955197,1707857437342,-3577.03210733,0.0002641,2]
[313955198,1707857437761,-372.782,0.00026414,2]
[313955199,1707857437776,-557.879,0.00026414,2]
[313955200,1707857437785,-2967.613,0.00026414,2]
[313955201,1707857437794,-952.0,0.00026414,2]
[313955202,1707857437804,-1863.0,0.00026414,2]
[313955203,1707857437813,-841.0,0.00026414,2]
[313955204,1707857437823,-707.0,0.00026414,2]
[313955205,1707857437834,-1231.0,0.00026414,2]
[313955206,1707857437846,-1947.0,0.00026414,2]
[313955207,1707857437855,-218.168,0.00026414,2]
[313955208,1707857437865,-1253.0,0.00026414,2]
[313955209,1707857437874,-237.0,0.00026414,2]
[313955210,1707857437883,-568.433,0.00026414,2]
[313955211,1707857437892,-439.98,0.00026414,2]
[313955212,1707857437902,-857.0,0.00026414,2]
[313955213,1707857437911,-1003.0,0.00026414,2]
[313955214,1707857437920,-343.0,0.00026414,2]
[313955215,1707857437929,-321.0,0.00026414,2]
[313955216,1707857437939,-1138.0,0.00026414,2]
[313955217,1707857437948,-150.0,0.00026414,2]
[313955218,1707857437957,-453.0,0.00026414,2]
[313955219,1707857437965,-2288.0,0.00026414,2]
[313955220,1707857437974,-2925.0,0.00026414,2]
[313955221,1707857437983,-19832.0,0.00026414,2]
[313955223,1707857437993,-150.0,0.00026414,2]
[313955224,1707857438003,-2093.756,0.00026414,2]
[313955225,1707857438011,-8158.0,0.00026414,2]
[313955226,1707857438020,-4207.0,0.00026414,2]
[313955227,1707857438030,-1036.0,0.00026414,2]
[313955228,1707857438039,-150.166,0.00026414,2]
[313955229,1707857438048,-170448.33729637,0.00026459,2]
[313955230,1707857438057,-1984.72150863,0.0002648,3]
[313955231,1707857438066,-2000.0,0.00026664,3]
[313955232,1707857438075,-546.11404868,0.0002685,2]
[313955233,1707857438084,-152.19,0.00026876,2]
[313955234,1707857438093,-177.27,0.00026888,2]
[313955236,1707857438103,-150.0,0.000269,2]
[313955237,1707857438113,-150.0,0.000269,2]
[313955238,1707857438123,-150.0,0.000269,2]
[313955239,1707857438132,-418.59953692,0.00027,2]
[313955240,1707857438141,-756.92162255,0.00027,2]
[313955242,1707857438151,-1300.0,0.00027,3]
[313955244,1707857438161,-211.0,0.00027001,2]
[313955245,1707857438170,-151.0,0.00027001,2]
[313955246,1707857438179,-206.0,0.00027045,7]
[313955247,1707857438189,-586.1,0.00027054,2]
[313955248,1707857438198,-1984.72150863,0.0002711,3]
[313955249,1707857438208,-505.2273384,0.000273,2]
[313955250,1707857438217,-3577.03210733,0.0002732,2]
[313955251,1707857438226,-170448.33729637,0.00027393,2]
[313955252,1707857438235,-155.0,0.00027397,2]
[313955253,1707857438244,-301.24162303,0.00027397,5]
[313955254,1707857438253,-200.43839479,0.00027397,2]
[313955255,1707857438263,-3546.58,0.00027397,2]
[313955256,1707857438272,-185.77,0.00027399,2]
[313955257,1707857438281,-1195.08125374,0.000274,2]
[313955258,1707857438290,-353.52,0.00027436,2]
[313955259,1707857438300,-165.24,0.00027441,2]
[313955260,1707857438309,-350.0,0.000275,5]
[313955261,1707857438318,-4734.46636762,0.000275,2]
[313955262,1707857438327,-19228.0,0.000275,2]
[313955263,1707857438336,-546.11404868,0.00027525,2]
[313955264,1707857438345,-844.0,0.00027537,2]
[313955265,1707857438355,-3546.58,0.00027556,2]
[313955266,1707857438364,-7173.14390489,0.000276,2]
[313955267,1707857438373,-3546.58,0.00027714,2]
[313955268,1707857438383,-722.84,0.00027734,2]
[313955269,1707857438392,-1984.72150863,0.0002774,3]
[313955270,1707857438413,-152.19,0.00027764,2]
[313955271,1707857438422,-801.73110008,0.000278,2]
[313955272,1707857438432,-635.06181516,0.000278,2]
[313955273,1707857438442,-4520.76192102,0.000278,2]
[313955274,1707857438451,-429.14264776,0.000278,2]
[313955275,1707857438460,-267.3156462,0.000278,2]
[313955276,1707857438470,-1318.06,0.00027807,2]
[313955277,1707857438480,-2170.85327756,0.00027834,28]
[313955278,1707857438489,-3546.58,0.00027872,2]
[313955279,1707857438499,-360.52021541,0.00027874,2]
[313955280,1707857438509,-189.77979253,0.0002789,2]
[313955281,1707857438519,-155.34941496,0.00027898,2]
[313955282,1707857438528,-205.77591492,0.00027899,2]
[313955283,1707857438537,-1109530.34437619,0.000279,3]
[313955284,1707857438547,-844793.07168706,0.000279,2]
[313955285,1707857438556,-156.71622305,0.00027997,2]
[313955286,1707857438566,-158.25109863,0.00027999,2]
[313955287,1707857438575,-1002.50189964,0.00027999,2]
[313955288,1707857438584,-551.80853329,0.00028,2]
[313955289,1707857438594,-969.07959217,0.00028,2]
[313955290,1707857438603,-177197.74649059,0.00028,2]
[313955291,1707857438614,-1000.0,0.00028,2]
[313955292,1707857438624,-200.0,0.00028,2]
[313955293,1707857438633,-3546.58,0.0002803,2]
[313955294,1707857438643,-45011.77140899,0.000281,2]
[313955295,1707857438653,-205.77591488,0.00028174,2]
[313955296,1707857438662,-3546.58,0.00028189,2]
[313955297,1707857438672,-5000.0,0.000282,2]
[313955298,1707857438681,-3375.0,0.000282,2]
[313955299,1707857438690,-50000.0,0.000282,2]
[313955300,1707857438699,-1000.0,0.000282,2]
[313955301,1707857438709,-3577.03210733,0.0002823,2]
[313955302,1707857438718,-150.0,0.00028299,2]
[313955303,1707857438728,-833736.618841,0.000283,2]
[313955304,1707857438737,-46680.49756312,0.000283,2]
[313955305,1707857438746,-719.71,0.000283,2]
[313955306,1707857438756,-170448.33729637,0.00028328,2]
[313955307,1707857438765,-3546.58,0.00028347,2]
[313955308,1707857438775,-1984.72150863,0.0002837,4]
[313955309,1707857438784,-801.73110008,0.000284,2]
[313955310,1707857438793,-635.06181515,0.000284,2]
[313955311,1707857438803,-4520.76192102,0.000284,2]
[313955312,1707857438812,-429.14264776,0.000284,2]
[313955313,1707857438822,-205.77591488,0.0002845,2]
[313955314,1707857438834,-531.12,0.00028488,2]
[313955315,1707857438843,-3546.58,0.00028505,2]
[313955316,1707857438852,-152.19,0.00028652,2]
[313955317,1707857438862,-3546.58,0.00028664,2]
[313955318,1707857438872,-20000.0,0.00028667,2]
[313955319,1707857438882,-3000.0,0.000287,2]
[313955320,1707857438891,-3000.0,0.0002871,2]
[313955321,1707857438900,-3000.0,0.0002872,2]
[313955322,1707857438909,-205.77591488,0.00028725,2]
[313955323,1707857438919,-3000.0,0.0002873,2]
[313955324,1707857438929,-3000.0,0.0002874,2]
[313955325,1707857438938,-3000.0,0.0002875,2]
[313955326,1707857438947,-3000.0,0.0002876,2]
[313955327,1707857438956,-155.36886781,0.00028765,2]
[313955328,1707857438966,-158.02655078,0.00028765,2]
[313955329,1707857438975,-150.0,0.00028766,2]
[313955330,1707857438984,-500.0,0.00028767,2]
[313955331,1707857438994,-500.0,0.00028767,2]
[313955332,1707857439004,-173.50176653,0.00028767,2]
[313955333,1707857439013,-500.0,0.00028767,2]
[313955334,1707857439023,-500.0,0.00028767,2]
[313955335,1707857439032,-246.4917124,0.00028767,2]
[313955336,1707857439042,-500.0,0.00028767,2]
[313955337,1707857439052,-506.26872,0.00028767,2]
[313955338,1707857439062,-502.14347219,0.00028767,2]
[313955339,1707857439071,-508.76148188,0.00028767,15]
[313955340,1707857439080,-504.05894076,0.00028767,2]
[313955341,1707857439089,-500.0,0.00028767,2]
[313955342,1707857439099,-500.0,0.00028767,2]
[313955343,1707857439109,-517.75655204,0.00028767,2]
[313955344,1707857439118,-526.1787889,0.00028767,2]
[313955345,1707857439128,-530.26037459,0.00028767,2]
[313955346,1707857439137,-500.0,0.00028767,2]
[313955347,1707857439147,-552.25672863,0.00028767,2]
[313955348,1707857439157,-500.0,0.00028767,2]
[313955349,1707857439166,-525.47534457,0.00028767,2]
[313955350,1707857439176,-500.0,0.00028767,2]
[313955351,1707857439185,-500.0,0.00028767,2]
[313955352,1707857439195,-500.0,0.00028767,2]
[313955353,1707857439204,-500.0,0.00028767,2]
[313955354,1707857439213,-500.0,0.00028767,2]
[313955355,1707857439223,-556.11509746,0.00028767,2]
[313955356,1707857439232,-508.3979808,0.00028767,2]
[313955357,1707857439241,-500.0,0.00028767,2]
[313955358,1707857439250,-500.0,0.00028767,2]
[313955359,1707857439259,-500.0,0.00028767,2]
[313955360,1707857439269,-500.0,0.00028767,2]
[313955361,1707857439279,-500.0,0.00028767,2]
[313955362,1707857439289,-508.97591735,0.00028767,2]
[313955363,1707857439298,-500.0,0.00028767,2]
[313955364,1707857439307,-500.0,0.00028767,2]
[313955365,1707857439317,-504.49667444,0.00028767,2]
[313955366,1707857439326,-519.90125621,0.00028767,2]
[313955367,1707857439335,-500.0,0.00028767,2]
[313955368,1707857439345,-500.0,0.00028767,2]
[313955369,1707857439354,-500.0,0.00028767,2]
[313955370,1707857439366,-500.0,0.00028767,2]
[313955371,1707857439375,-500.0,0.00028767,2]
[313955372,1707857439384,-500.0,0.00028767,2]
[313955373,1707857439393,-500.0,0.00028767,2]
[313955374,1707857439403,-500.0,0.00028767,2]
[313955375,1707857439412,-500.0,0.00028767,2]
[313955376,1707857439421,-500.0,0.00028767,2]
[313955377,1707857439430,-500.0,0.00028767,2]
[313955378,1707857439439,-500.0,0.00028767,2]
[313955379,1707857439448,-507.07190433,0.00028767,2]
[313955380,1707857439458,-500.0,0.00028767,2]
[313955381,1707857439467,-500.0,0.00028767,2]
[313955382,1707857439477,-500.0,0.00028767,2]
[313955383,1707857439486,-500.0,0.00028767,2]
[313955384,1707857439495,-500.0,0.00028767,2]
[313955385,1707857439504,-500.0,0.00028767,2]
[313955386,1707857439513,-505.757976,0.00028767,2]
[313955387,1707857439522,-500.0,0.00028767,2]
[313955388,1707857439532,-505.68178975,0.00028767,2]
[313955389,1707857439541,-500.0,0.00028767,2]
[313955390,1707857439550,-500.0,0.00028767,2]
[313955391,1707857439559,-500.0,0.00028767,2]
[313955392,1707857439568,-500.0,0.00028767,2]
[313955393,1707857439578,-240.34268855,0.00028767,2]
[313955394,1707857439587,-500.0,0.00028767,2]
[313955395,1707857439596,-500.0,0.00028767,2]
[313955396,1707857439605,-500.0,0.00028767,2]
[313955397,1707857439620,-500.0,0.00028767,2]
[313955398,1707857439629,-507.15501102,0.00028767,2]
[313955399,1707857439639,-500.0,0.00028767,2]
[313955400,1707857439648,-500.0,0.00028767,2]
[313955401,1707857439657,-500.0,0.00028767,2]
[313955402,1707857439666,-500.0,0.00028767,2]
[313955403,1707857439676,-500.0,0.00028767,2]
[313955404,1707857439685,-531.23598861,0.00028767,2]
[313955405,1707857439694,-500.0,0.00028767,2]
[313955406,1707857439703,-468.60852835,0.00028767,2]
[313955407,1707857439712,-517.53126806,0.00028767,2]
[313955408,1707857439722,-544.72378026,0.00028767,2]
[313955409,1707857439731,-500.0,0.00028767,2]
[313955410,1707857439739,-500.0,0.00028767,2]
[313955411,1707857439749,-512.75827875,0.00028767,2]
[313955412,1707857439758,-500.0,0.00028767,2]
[313955413,1707857439767,-500.0,0.00028767,2]
[313955414,1707857439776,-309.68674072,0.00028767,2]
[313955415,1707857439785,-515.14983744,0.00028767,2]
[313955416,1707857439795,-500.0,0.00028767,2]
[313955417,1707857439804,-503.87992027,0.00028767,2]
[313955418,1707857439813,-515.08159922,0.00028767,2]
[313955419,1707857439823,-500.0,0.00028767,2]
[313955420,1707857439832,-500.0,0.00028767,2]
[313955421,1707857439845,-500.0,0.00028767,2]
[313955422,1707857439854,-500.0,0.00028767,2]
[313955423,1707857439865,-500.0,0.00028767,2]
[313955424,1707857439874,-517.86998168,0.00028767,2]
[313955425,1707857439884,-500.0,0.00028767,2]
[313955426,1707857439893,-506.43088369,0.00028767,2]
[313955427,1707857439903,-500.0,0.00028767,2]
[313955428,1707857439912,-509.51275131,0.00028767,2]
[313955430,1707857439922,-500.0,0.00028767,2]
[313955432,1707857439933,-500.0,0.00028767,2]
[313955434,1707857439942,-500.0,0.00028767,2]
[313955435,1707857439951,-533.56554762,0.00028767,2]
[313955437,1707857439960,-500.0,0.00028767,2]
[313955438,1707857439969,-500.0,0.00028767,2]
[313955439,1707857439978,-500.0,0.00028767,2]
[313955440,1707857439987,-513.00803396,0.00028767,2]
[313955441,1707857439997,-512.24613013,0.00028767,2]
[313955442,1707857440006,-513.83104069,0.00028767,2]
[313955443,1707857440016,-500.0,0.00028767,2]
[313955444,1707857440026,-500.0,0.00028767,2]
[313955445,1707857440035,-513.05455456,0.00028767,2]
[313955447,1707857440045,-500.0,0.00028767,2]
[313955449,1707857440054,-500.0,0.00028767,2]
[313955451,1707857440064,-500.0,0.00028767,2]
[313955453,1707857440074,-500.0,0.00028767,2]
[313955455,1707857440083,-530.53220462,0.00028767,2]
[313955457,1707857440093,-500.0,0.00028767,2]
[313955458,1707857440102,-500.0,0.00028767,2]
[313955459,1707857440114,-500.0,0.00028767,2]
[313955460,1707857440123,-500.0,0.00028767,2]
[313955461,1707857440133,-500.0,0.00028767,2]
[313955462,1707857440142,-500.0,0.00028767,2]
[313955463,1707857440152,-506.41381935,0.00028767,2]
[313955464,1707857440161,-522.96576006,0.00028767,2]
[313955465,1707857440171,-500.0,0.00028767,2]
[313955466,1707857440180,-500.0,0.00028767,2]
[313955467,1707857440189,-512.46184631,0.00028767,2]
[313955468,1707857440199,-507.54636461,0.00028767,2]
[313955469,1707857440208,-500.0,0.00028767,2]
[313955470,1707857440218,-500.0,0.00028767,2]
[313955471,1707857440227,-500.0,0.00028767,2]
[313955472,1707857440237,-211.38582102,0.00028767,2]
[313955473,1707857440247,-355.61221989,0.00028767,2]
[313955474,1707857440256,-500.0,0.00028767,2]
[313955475,1707857440265,-522.22648623,0.00028767,2]
[313955476,1707857440275,-500.0,0.00028767,2]
[313955477,1707857440285,-500.0,0.00028767,2]
[313955478,1707857440294,-500.0,0.00028767,2]
[313955479,1707857440303,-500.0,0.00028767,2]
[313955480,1707857440312,-181.68697596,0.00028767,2]
[313955481,1707857440322,-500.0,0.00028767,2]
[313955482,1707857440331,-511.95092368,0.00028767,2]
[313955483,1707857440340,-500.0,0.00028767,2]
[313955484,1707857440349,-500.0,0.00028767,2]
[313955485,1707857440358,-504.61785763,0.00028767,2]
[313955486,1707857440367,-500.0,0.00028767,2]
[313955487,1707857440377,-500.0,0.00028767,2]
[313955488,1707857440387,-532.02270154,0.00028767,2]
[313955489,1707857440397,-500.0,0.00028767,2]
[313955490,1707857440407,-594.51778094,0.00028767,2]
[313955491,1707857440416,-500.0,0.00028767,2]
[313955492,1707857440425,-167.95230687,0.00028767,2]
[313955493,1707857440434,-387.79572214,0.00028767,2]
[313955494,1707857440444,-500.0,0.00028767,2]
[313955495,1707857440453,-500.0,0.00028767,2]
[313955496,1707857440464,-500.0,0.00028767,2]
[313955497,1707857440474,-500.0,0.00028767,2]
[313955498,1707857440483,-256.75625613,0.00028767,2]
[313955499,1707857440492,-500.0,0.00028767,2]
[313955500,1707857440502,-500.0,0.00028767,2]
[313955501,1707857440511,-500.0,0.00028767,2]
[313955502,1707857440520,-500.0,0.00028767,2]
[313955503,1707857440529,-500.0,0.00028767,2]
[313955504,1707857440539,-499.93602792,0.00028767,2]
[313955505,1707857440548,-500.0,0.00028767,2]
[313955506,1707857440557,-500.0,0.00028767,2]
[313955507,1707857440566,-507.8564224,0.00028767,2]
[313955508,1707857440576,-501.88224419,0.00028767,2]
[313955509,1707857440585,-500.0,0.00028767,2]
[313955510,1707857440594,-500.0,0.00028767,2]
[313955511,1707857440603,-500.0,0.00028767,2]
[313955512,1707857440613,-500.0,0.00028767,2]
[313955513,1707857440622,-500.0,0.00028767,2]
[313955514,1707857440632,-500.0,0.00028767,2]
[313955515,1707857440641,-500.0,0.00028767,2]
[313955516,1707857440649,-500.0,0.00028767,2]
[313955517,1707857440659,-500.0,0.00028767,2]
[313955518,1707857440668,-500.0,0.00028767,2]
[313955519,1707857440677,-500.0,0.00028767,2]
[313955520,1707857440687,-500.0,0.00028767,2]
[313955521,1707857440696,-500.0,0.00028767,2]
[313955522,1707857440705,-500.0,0.00028767,2]
[313955523,1707857440714,-500.0,0.00028767,2]
[313955524,1707857440724,-500.0,0.00028767,2]
[313955525,1707857440732,-250.0,0.00028767,2]
[313955526,1707857440742,-500.0,0.00028767,2]
[313955527,1707857440752,-500.0,0.00028767,2]
[313955528,1707857440763,-500.0,0.00028767,2]
[313955529,1707857440773,-500.0,0.00028767,2]
[313955530,1707857440782,-500.0,0.00028767,2]
[313955531,1707857440790,-537.43075575,0.00028767,2]
[313955532,1707857440799,-500.0,0.00028767,2]
[313955533,1707857440808,-500.0,0.00028767,2]
[313955534,1707857440818,-500.0,0.00028767,2]
[313955535,1707857440827,-500.0,0.00028767,2]
[313955536,1707857440838,-588.41166573,0.00028767,2]
[313955537,1707857440848,-500.0,0.00028767,2]
[313955538,1707857440858,-500.0,0.00028767,2]
[313955539,1707857440868,-500.0,0.00028767,2]
[313955540,1707857440878,-502.79489974,0.00028767,2]
[313955541,1707857440887,-500.0,0.00028767,2]
[313955542,1707857440897,-500.0,0.00028767,2]
[313955543,1707857440907,-500.0,0.00028767,2]
[313955544,1707857440918,-500.0,0.00028767,2]
[313955545,1707857440927,-500.0,0.00028767,2]
[313955546,1707857440936,-500.0,0.00028767,2]
[313955547,1707857440946,-500.0,0.00028767,2]
[313955548,1707857440956,-629.82837974,0.00028767,2]
[313955553,1707857441134,-500.0,0.00028767,2]
[313955555,1707857441153,-500.0,0.00028767,2]
[313955557,1707857441162,-500.0,0.00028767,2]
[313955559,1707857441171,-500.0,0.00028767,2]
[313955561,1707857441181,-500.0,0.00028767,2]
[313955563,1707857441190,-500.0,0.00028767,2]
[313955565,1707857441200,-500.0,0.00028767,2]
[313955569,1707857441210,-1000.0,0.00028767,7]
[313955572,1707857441220,-500.0,0.00028767,2]
[313955575,1707857441229,-500.0,0.00028767,2]
[313955577,1707857441238,-500.0,0.00028767,2]
[313955579,1707857441247,-500.0,0.00028767,2]
[313955581,1707857441257,-500.0,0.00028767,2]
[313955583,1707857441267,-500.0,0.00028767,2]
[313955584,1707857441277,-500.0,0.00028767,2]
[313955587,1707857441286,-500.0,0.00028767,2]
[313955588,1707857441295,-500.0,0.00028767,2]
[313955590,1707857441306,-500.0,0.00028767,2]
[313955593,1707857441322,-500.0,0.00028767,2]
[313955594,1707857441335,-520.53530572,0.00028767,2]
[313955597,1707857441350,-500.0,0.00028767,2]
[313955599,1707857441359,-500.0,0.00028767,2]
[313955601,1707857441368,-500.0,0.00028767,2]
[313955603,1707857441378,-500.0,0.00028767,2]
[313955605,1707857441388,-500.0,0.00028767,2]
[313955607,1707857441398,-500.0,0.00028767,2]
[313955608,1707857441407,-500.0,0.00028767,2]
[313955609,1707857441416,-500.0,0.00028767,2]
[313955611,1707857441425,-287.41538827,0.00028767,2]
[313955613,1707857441434,-500.0,0.00028767,2]
[313955615,1707857441443,-500.0,0.00028767,2]
[313955617,1707857441452,-500.0,0.00028767,2]
[313955618,1707857441461,-500.0,0.00028767,2]
[313955619,1707857441470,-513.36552378,0.00028767,2]
[313955620,1707857441479,-500.0,0.00028767,2]
[313955621,1707857441488,-500.0,0.00028767,30]
[313955622,1707857441497,-500.0,0.00028767,2]
[313955623,1707857441506,-500.0,0.00028767,2]
[313955624,1707857441515,-500.0,0.00028767,2]
[313955625,1707857441524,-500.0,0.00028767,2]
[313955626,1707857441533,-500.0,0.00028767,2]
[313955627,1707857441542,-500.0,0.00028767,2]
[313955628,1707857441551,-500.0,0.00028767,2]
[313955629,1707857441560,-500.0,0.00028767,2]
[313955630,1707857441569,-500.0,0.00028767,2]
[313955631,1707857441580,-505.10828601,0.00028767,2]
[313955632,1707857441590,-500.0,0.00028767,2]
[313955633,1707857441599,-520.01190632,0.00028767,2]
[313955634,1707857441609,-500.0,0.00028767,2]
[313955635,1707857441619,-540.12194127,0.00028767,2]
[313955636,1707857441628,-500.0,0.00028767,2]
[313955637,1707857441637,-500.0,0.00028767,2]
[313955638,1707857441646,-500.0,0.00028767,2]
[313955639,1707857441655,-500.0,0.00028767,2]
[313955640,1707857441664,-500.0,0.00028767,2]